bitfinex-derivatives/quotes_BTCF0:USTF0_20250806
["timestamp","ask_amount","ask_price","bid_price","bid_amount"]
[1754476083386,2.8470557,114010.0,114000.0,1.08651958]
[1754476083592,2.8480557,114010.0,114000.0,1.08651958]
[1754476085296,2.8500557,114010.0,114000.0,1.08651958]
[1754476086804,2.3083909,114010.0,114000.0,1.08651638]
[1754476087094,0.2012309,114010.0,114000.0,1.08651638]
[1754476087396,0.8083909,114010.0,114000.0,1.34941638]
[1754476087895,0.8250009,114010.0,114000.0,1.34941638]
[1754476088088,1.2191709,114010.0,114000.0,1.34941638]
[1754476088395,0.8781709,114010.0,114000.0,1.34941638]
[1754476088588,1.2389709,114010.0,114000.0,1.34941638]
[1754476088895,0.6465609,114010.0,114000.0,1.34941638]
[1754476089096,0.6558709,114010.0,114000.0,1.34941638]
[1754476089498,0.6558709,114010.0,114000.0,1.33395638]
[1754476090399,0.2950709,114010.0,114000.0,1.33395638]
[1754476090598,0.6558709,114010.0,114000.0,1.34941638]
[1754476091699,0.2950709,114010.0,114000.0,1.34941638]
[1754476092200,0.1982309,114010.0,114000.0,1.34941638]
[1754476101201,0.2143309,114010.0,114000.0,1.34941638]
[1754476101901,0.02278,114010.0,114000.0,1.34941638]
[1754476102304,0.1982177,114010.0,114000.0,1.34941638]
[1754476103404,0.2844577,114010.0,114000.0,1.95605638]
[1754476105303,0.2844577,114010.0,114000.0,2.02788795]
[1754476105896,0.2844577,114010.0,114000.0,1.34941638]
[1754476106096,0.2844577,114010.0,114000.0,1.95593638]
[1754476107104,0.2844577,114010.0,114000.0,1.95589638]
[1754476107399,0.6452577,114010.0,114000.0,1.95589638]
[1754476110805,0.6452577,114010.0,114000.0,2.02525075]
[1754476111204,0.6218677,114010.0,114000.0,1.40331085]
[1754476111406,0.6550377,114010.0,114000.0,2.00971085]
[1754476111602,0.6550377,114010.0,114000.0,1.83425755]
[1754476111905,2.1550377,114010.0,114000.0,1.84971755]
[1754476112602,2.1550377,114010.0,114000.0,2.02517085]
[1754476112907,2.1600377,114010.0,114000.0,2.02517085]
[1754476115311,2.1570377,114010.0,114000.0,2.02517085]
[1754476115511,0.6590377,114010.0,114000.0,2.02517085]
[1754476115806,0.6580377,114010.0,114000.0,2.02517085]
[1754476126521,0.6336977,114010.0,114000.0,2.02517085]
[1754476126825,0.6005277,114010.0,114000.0,2.02517085]
[1754476127730,0.2173177,114010.0,114000.0,2.02517085]
[1754476128117,0.5761177,114010.0,114000.0,2.02517085]
[1754476128821,0.5751177,114010.0,114000.0,2.02517085]
[1754476129028,0.2143177,114010.0,114000.0,2.02517085]
[1754476140326,0.6239238,114030.0,114010.0,0.1470307]
[1754476140531,1.52426,114040.0,114020.0,1.41241688]
[1754476140739,0.03323946,114040.0,114030.0,0.93627738]
[1754476140940,0.02426,114040.0,114030.0,0.93627738]
[1754476141439,0.5604364,114050.0,114040.0,0.51239999]
[1754476141628,0.5604364,114050.0,114040.0,1.11791999]
[1754476142228,0.6548064,114050.0,114040.0,1.11791999]
[1754476142432,0.6406764,114050.0,114040.0,1.11791999]
[1754476142934,0.6416764,114050.0,114040.0,1.11791999]
[1754476143342,0.6081464,114050.0,114040.0,1.11791999]
[1754476143837,0.6578064,114050.0,114040.0,1.11791999]
[1754476144241,0.2970064,114050.0,114040.0,1.11791999]
[1754476144634,0.12163,114050.0,114040.0,1.52953658]
[1754476144934,0.29159031,114050.0,114040.0,1.19252829]
[1754476145739,0.25806031,114050.0,114040.0,1.19252829]
[1754476147941,0.66652031,114050.0,114040.0,1.19252829]
[1754476149541,0.66652031,114050.0,114040.0,1.45542829]
[1754476150132,0.30572031,114050.0,114040.0,1.45542829]
[1754476150735,0.66652031,114050.0,114040.0,1.45542829]
[1754476171964,0.30572031,114050.0,114040.0,1.45542829]
[1754476172153,0.66652031,114050.0,114040.0,1.45542829]
[1754476179076,0.30572031,114050.0,114040.0,1.45542829]
[1754476179274,0.66652031,114050.0,114040.0,1.45542829]
[1754476187181,0.66652031,114050.0,114040.0,1.0438117]
[1754476187379,0.66652031,114050.0,114040.0,1.45542829]
[1754476193584,0.30572031,114050.0,114040.0,1.45542829]
[1754476193784,0.66652031,114050.0,114040.0,1.45542829]
[1754476198589,0.66656031,114050.0,114040.0,1.45542829]
[1754476199495,0.66656031,114050.0,114040.0,1.45542689]
[1754476201994,0.1753901,114040.0,114030.0,0.54842101]
[1754476202186,0.2915301,114040.0,114030.0,1.68985318]
[1754476202502,0.2915301,114040.0,114020.0,0.28553751]
[1754476202503,0.2915455,114030.0,114020.0,0.28553751]
[1754476202687,0.6523455,114030.0,114020.0,1.1254533]
[1754476202894,0.6523455,114030.0,114020.0,1.1254133]
[1754476203391,0.6523455,114030.0,114020.0,0.5217333]
[1754476203696,0.6523455,114030.0,114020.0,1.1264133]
[1754476203898,0.6523455,114030.0,114020.0,1.01629659]
[1754476204397,0.6523455,114030.0,114020.0,1.01729659]
[1754476204798,0.6523455,114030.0,114020.0,1.19271749]
[1754476205191,0.4923517,114040.0,114020.0,1.80215829]
[1754476205392,0.3296472,114040.0,114030.0,0.99863868]
[1754476205692,0.3545972,114040.0,114030.0,0.93334989]
[1754476205898,0.7838972,114040.0,114030.0,0.82323318]
[1754476206199,0.7838972,114040.0,114030.0,0.99863868]
[1754476206891,0.7838972,114040.0,114030.0,0.48009964]
[1754476207088,0.7838972,114040.0,114030.0,0.30469414]
[1754476207398,0.7838972,114040.0,114030.0,0.48009964]
[1754476207697,0.7838972,114040.0,114030.0,0.30469414]
[1754476208898,0.7838972,114040.0,114030.0,0.48009964]
[1754476209800,0.4230972,114040.0,114030.0,0.48009964]
[1754476210000,0.7838972,114040.0,114030.0,0.48009964]
[1754476212002,0.7838972,114040.0,114030.0,0.30469414]
[1754476212403,0.7838972,114040.0,114030.0,0.48009954]
[1754476212599,0.7838972,114040.0,114030.0,0.30469414]
[1754476212897,0.1754054,114030.0,114020.0,0.9106511]
[1754476213104,0.2915454,114030.0,114020.0,1.17149034]
[1754476214297,0.2915454,114030.0,114020.0,1.17349034]
[1754476216710,0.2915454,114030.0,114020.0,0.8687962]
[1754476216899,0.2915454,114030.0,114020.0,1.17349034]
[1754476221905,0.2447554,114030.0,114020.0,0.52595544]
[1754476222111,0.2924954,114030.0,114020.0,0.91001414]
[1754476222305,0.6532954,114030.0,114020.0,0.91001414]
[1754476223012,0.6532954,114030.0,114020.0,0.60532]
[1754476223310,0.6532954,114030.0,114020.0,0.90901414]
[1754476223611,0.6532954,114030.0,114020.0,0.90801414]
[1754476224008,0.6552954,114030.0,114020.0,0.90801414]
[1754476224205,0.6552954,114030.0,114020.0,1.08343484]
[1754476224403,0.6562954,114030.0,114020.0,1.08343484]
[1754476224599,0.6562954,114030.0,114020.0,0.90801414]
[1754476225314,0.6562954,114030.0,114020.0,0.48011484]
[1754476225503,0.6562954,114030.0,114020.0,1.08335484]
[1754476225902,0.6562954,114030.0,114020.0,0.90793414]
[1754476226406,0.6562954,114030.0,114020.0,0.30469414]
[1754476226607,0.6562954,114030.0,114020.0,0.90789414]
[1754476227912,0.6562954,114030.0,114020.0,1.08331474]
[1754476232618,0.6562954,114030.0,114020.0,0.48011474]
[1754476232819,0.6562954,114030.0,114020.0,1.08319474]
[1754476233414,0.003,114030.0,114020.0,1.08319474]
[1754476233715,0.003,114030.0,114020.0,1.44399474]
[1754476234111,0.003,114030.0,114020.0,1.55411145]
[1754476234416,0.002,114030.0,114020.0,1.55411145]
[1754476234606,0.3319343,114040.0,114030.0,0.1754053]
[1754476234806,0.3319343,114040.0,114030.0,0.48009944]
[1754476235008,0.3319343,114040.0,114030.0,0.59021615]
[1754476235918,0.4275643,114040.0,114030.0,0.59021605]
[1754476236117,0.4275643,114040.0,114030.0,0.48009934]
[1754476237018,0.4275643,114040.0,114030.0,0.59052514]
[1754476240918,0.4275643,114040.0,114030.0,0.48009934]
[1754476241722,0.4275643,114040.0,114030.0,0.59052514]
[1754476244925,0.4275643,114040.0,114030.0,0.48009934]
[1754476246222,0.4275643,114040.0,114030.0,0.59052514]
[1754476247027,0.4275643,114040.0,114030.0,0.48009934]
[1754476248128,0.4275643,114040.0,114030.0,0.59052514]
[1754476249019,0.4275643,114040.0,114030.0,0.48009934]
[1754476252433,0.2227553,114030.0,114020.0,1.2708485]
[1754476252624,0.2792853,114030.0,114020.0,1.57554264]
[1754476252824,0.2934853,114030.0,114020.0,1.21474264]
[1754476253632,0.2934853,114030.0,114020.0,1.21574264]
[1754476253821,0.2934853,114030.0,114020.0,1.21674264]
[1754476261530,0.2934853,114030.0,114020.0,1.32716844]
[1754476262346,0.2792853,114030.0,114020.0,1.32716844]
[1754476263131,0.1999553,114030.0,114020.0,1.68796844]
[1754476268229,0.2631041,114040.0,114030.0,0.1754053]
[1754476268433,0.1999532,114040.0,114030.0,0.78479358]
[1754476268633,0.1999399,114040.0,114030.0,1.25601938]
[1754476269337,0.2715899,114040.0,114030.0,0.95132524]
[1754476269527,0.2934699,114040.0,114030.0,0.95132524]
[1754476270036,0.2934699,114040.0,114030.0,0.59052524]
[1754476273539,0.2934699,114040.0,114030.0,0.48009944]
[1754476275137,0.2934699,114040.0,114030.0,0.59052524]
[1754476276641,0.2934699,114040.0,114030.0,0.97137056]
[1754476277841,0.2934699,114040.0,114030.0,0.86094476]
[1754476279144,0.2934699,114040.0,114030.0,0.97137056]
[1754476280747,0.2934699,114040.0,114030.0,0.86094476]
[1754476287755,0.2934699,114040.0,114030.0,0.97137056]
[1754476288358,0.2934699,114040.0,114000.0,0.22666396]
[1754476288359,0.175436,114010.0,114000.0,0.22666396]
[1754476288558,0.656956,114010.0,114000.0,0.4121241]
[1754476290748,0.656956,114010.0,114000.0,0.37424846]
[1754476292958,0.656956,114010.0,114000.0,0.06935437]
[1754476293159,0.2468614,114000.0,113990.0,0.7774261]
[1754476293351,0.2961714,114000.0,113990.0,0.7774261]
[1754476295765,0.2961714,114000.0,113990.0,0.7784261]
[1754476296066,0.30506342,114000.0,113990.0,0.7784261]
[1754476296262,0.30506342,114000.0,113990.0,0.7794261]
[1754476297871,0.30506342,114000.0,113990.0,0.60396]
[1754476298068,0.66586342,114000.0,113990.0,0.7794268]
[1754476298269,0.66586342,114000.0,113990.0,0.88973212]
[1754476299077,0.30506342,114000.0,113990.0,0.88973212]
[1754476299677,0.2961714,114000.0,113990.0,0.88973212]
[1754476299877,0.1987943,114020.0,113990.0,1.7287168]
[1754476300069,0.02337,114020.0,114010.0,0.84113009]
[1754476300275,0.02337,114020.0,114010.0,1.44305009]
[1754476300672,0.3111406,114040.0,114030.0,0.1754053]
[1754476300876,0.2426198,114040.0,114030.0,1.74791348]
[1754476301077,0.3399698,114040.0,114030.0,1.44301939]
[1754476301376,0.3399698,114040.0,114030.0,1.08221939]
[1754476301974,0.3399698,114040.0,114030.0,1.15142934]
[1754476302279,0.3399698,114040.0,114030.0,1.26173466]
[1754476303177,0.3409698,114040.0,114030.0,1.15142934]
[1754476304575,0.34974548,114040.0,114030.0,1.26173466]
[1754476305784,0.34974548,114040.0,114030.0,1.15142934]
[1754476309081,0.3409698,114040.0,114030.0,1.15142934]
[1754476309677,0.34970518,114040.0,114030.0,1.15142934]
[1754476310187,0.3409698,114040.0,114030.0,1.15142934]
[1754476312585,0.2436198,114040.0,114030.0,1.15142934]
[1754476313495,0.2765998,114040.0,114030.0,1.15142934]
[1754476313687,0.3166598,114040.0,114030.0,1.15142934]
[1754476316694,0.3377398,114040.0,114030.0,1.15142934]
[1754476317397,0.3228298,114040.0,114030.0,1.15142934]
[1754476318097,0.3228298,114040.0,114030.0,1.41432934]
[1754476320399,0.3377398,114040.0,114030.0,1.41432934]
[1754476330200,0.3228298,114040.0,114030.0,1.41432934]
[1754476330501,0.2898498,114040.0,114030.0,1.41432934]
[1754476330700,0.3377398,114040.0,114030.0,1.41432934]
[1754476331696,0.2898498,114040.0,114030.0,1.41432934]
[1754476331893,0.2898498,114040.0,114030.0,1.52463466]
[1754476332295,0.3228298,114040.0,114030.0,1.52463466]
[1754476332597,0.3377398,114040.0,114030.0,1.52463466]
[1754476332790,0.2249101,114040.0,114030.0,1.52463466]
[1754476332996,0.02483,114040.0,114030.0,2.19032875]
[1754476333197,0.001,114040.0,114030.0,2.08002343]
[1754476333502,0.0253,114040.0,114030.0,2.08002343]
[1754476333702,0.001,114040.0,114030.0,2.08002343]
[1754476333907,0.001,114040.0,114030.0,2.1905464]
[1754476334099,0.02434,114050.0,114040.0,0.78517828]
[1754476334295,0.02434,114050.0,114040.0,1.25650125]
[1754476335803,0.02534,114050.0,114040.0,1.25650125]
[1754476336393,0.2007146,114050.0,114040.0,1.25650125]
[1754476337101,0.2007146,114050.0,114040.0,0.84108419]
[1754476337803,0.2007146,114050.0,114040.0,1.14597828]
[1754476337998,0.02534,114050.0,114040.0,1.14597828]
[1754476338304,0.2007146,114050.0,114040.0,1.14597828]
[1754476338896,0.2007146,114050.0,114040.0,1.40887828]
[1754476341705,0.2007146,114050.0,114040.0,1.51940125]
[1754476342806,0.02534,114050.0,114040.0,1.51940125]
[1754476343405,0.00104,114050.0,114040.0,1.5283559]
[1754476344005,0.00104,114050.0,114040.0,1.41783293]
[1754476344205,0.00104,114050.0,114040.0,1.40887828]
[1754476344411,0.2007147,114050.0,114040.0,1.40887828]
[1754476344808,0.2007147,114050.0,114040.0,1.51940125]
[1754476345409,0.02534,114050.0,114040.0,1.51940125]
[1754476346098,0.02534,114050.0,114040.0,1.40887828]
[1754476349110,0.02534,114050.0,114040.0,1.40987828]
[1754476349511,0.02434,114050.0,114040.0,1.41087828]
[1754476353813,0.1997145,114050.0,114040.0,1.41087828]
[1754476354013,0.02434,114050.0,114040.0,1.41087828]
[1754476355202,4e-05,114050.0,114040.0,1.41087828]
[1754476356304,0.0243,114060.0,114040.0,1.41087828]
[1754476356305,0.0243,114060.0,114050.0,0.1753747]
[1754476356506,0.0243,114060.0,114050.0,1.34420879]
[1754476358210,0.0243,114060.0,114050.0,1.70500879]
[1754476360310,0.0243,114060.0,114050.0,1.81553176]
[1754476360618,1.7873331,114070.0,114050.0,1.77168066]
[1754476360812,1.8120031,114070.0,114060.0,0.40561269]
[1754476361319,1.8363031,114070.0,114060.0,0.40561269]
[1754476362619,0.39338832,114070.0,114060.0,0.40561269]
[1754476362924,0.3865331,114070.0,114060.0,0.40561269]
[1754476364323,0.3875331,114070.0,114060.0,0.40561269]
[1754476365120,0.3875331,114070.0,114060.0,0.51613566]
[1754476365322,0.3875331,114070.0,114060.0,0.77903566]
[1754476366024,0.3875331,114070.0,114060.0,0.66851269]
[1754476368731,0.3875331,114070.0,114060.0,1.12347844]
[1754476370731,0.3875331,114070.0,114060.0,0.7428017]
[1754476373230,0.1783444,114070.0,114060.0,0.7428017]
[1754476373430,0.2012644,114070.0,114060.0,0.7428017]
[1754476373637,0.2012644,114070.0,114060.0,0.85332467]
[1754476374940,0.2572044,114070.0,114060.0,0.85332467]
[1754476375142,0.2942544,114070.0,114060.0,0.85332467]
[1754476376932,0.2942544,114070.0,114060.0,0.7428017]
[1754476386451,0.2942544,114070.0,114060.0,0.85332467]
[1754476387250,0.2942544,114070.0,114060.0,0.7428017]
[1754476387551,0.11891,114070.0,114060.0,0.7428017]
[1754476388049,0.11891,114070.0,114060.0,0.85332467]
[1754476388549,0.05007,114070.0,114060.0,1.22309435]
[1754476388745,0.003,114070.0,114060.0,1.22309435]
[1754476389053,0.02292,114080.0,114070.0,0.1753444]
[1754476389239,0.02292,114080.0,114070.0,1.19100977]
[1754476389647,0.02292,114080.0,114070.0,1.49555217]
[1754476390147,0.02592,114080.0,114070.0,1.49549325]
[1754476390346,0.02592,114080.0,114070.0,1.19095085]
[1754476390651,0.02592,114080.0,114070.0,1.49549325]
[1754476391151,0.02792,114080.0,114070.0,1.19095085]
[1754476393649,0.02792,114080.0,114070.0,1.55175085]
[1754476393852,0.02792,114080.0,114070.0,1.7458292]
[1754476394044,0.005,114080.0,114070.0,2.4522292]
[1754476394851,0.02943,114080.0,114070.0,2.4522292]
[1754476395457,0.02943,114080.0,114070.0,2.0087292]
[1754476395752,0.005,114080.0,114070.0,2.11906769]
[1754476396547,0.02943,114080.0,114070.0,2.11906769]
[1754476397656,0.02943,114080.0,114070.0,1.81452529]
[1754476398659,0.02943,114080.0,114070.0,2.11906769]
[1754476399364,0.02943,114080.0,114070.0,1.81452529]
[1754476399657,0.02943,114080.0,114070.0,2.11906769]
[1754476400957,0.005,114080.0,114070.0,1.95348289]
[1754476401161,0.005,114080.0,114070.0,2.4522292]
[1754476402063,0.02447,114090.0,114080.0,0.7844135]
[1754476402356,4e-05,114090.0,114080.0,1.9618472]
[1754476402661,0.02443,114100.0,114090.0,0.1753134]
[1754476402861,0.02443,114100.0,114090.0,1.55125368]
[1754476403457,0.02443,114100.0,114090.0,1.55996015]
[1754476403859,0.02943,114100.0,114090.0,1.55125368]
[1754476404360,0.02943,114100.0,114090.0,1.4410558]
[1754476404863,0.02943,114100.0,114090.0,1.55125368]
[1754476404864,0.06334,114100.0,114090.0,1.55125368]
[1754476405360,0.06334,114100.0,114090.0,1.4410558]
[1754476405561,0.06534,114100.0,114090.0,1.4410558]
[1754476405756,0.3027883,114100.0,114090.0,0.91164536]
[1754476405960,0.3027883,114100.0,114090.0,1.51200536]
[1754476406562,0.007,114100.0,114090.0,1.51200536]
[1754476406861,0.03143,114100.0,114090.0,1.77490536]
[1754476407764,0.12749,114100.0,114090.0,1.77490536]
[1754476411365,0.07874,114100.0,114090.0,1.77490536]
[1754476411866,0.12749,114100.0,114090.0,1.77490536]
[1754476413260,0.04086,114100.0,114090.0,1.77490536]
[1754476413467,0.03143,114100.0,114090.0,1.77490536]
[1754476416458,0.10517,114100.0,114090.0,1.77490536]
[1754476416769,0.12749,114100.0,114090.0,1.77490536]
[1754476417270,0.11265,114100.0,114090.0,1.77490536]
[1754476417568,0.12749,114100.0,114090.0,1.77490536]
[1754476417768,0.07874,114100.0,114090.0,1.77490536]
[1754476417962,0.12749,114100.0,114090.0,1.77490536]
[1754476420771,0.12749,114100.0,114090.0,2.1551069]
[1754476423362,0.07874,114100.0,114090.0,2.1551069]
[1754476424364,0.2883987,114100.0,114090.0,2.1551069]
[1754476424571,0.3032487,114100.0,114090.0,2.1551069]
[1754476426476,0.3032487,114100.0,114090.0,1.5547469]
[1754476426680,0.3032487,114100.0,114090.0,2.1548669]
[1754476426873,0.3032487,114100.0,114090.0,1.7940669]
[1754476428179,1.00642067,114100.0,114090.0,1.27638153]
[1754476428365,0.6640487,114100.0,114090.0,1.27638153]
[1754476428571,1.00642067,114100.0,114090.0,0.33388956]
[1754476428776,1.00642067,114100.0,114090.0,0.93400956]
[1754476428977,1.00642067,114100.0,114090.0,1.27638153]
[1754476429182,1.00642067,114100.0,114090.0,0.33388956]
[1754476429479,1.00642067,114100.0,114090.0,0.67626153]
[1754476430373,1.00642067,114100.0,114090.0,0.33388956]
[1754476430776,0.96852744,114100.0,114090.0,0.33388956]
[1754476431076,1.44382344,114100.0,114090.0,0.2479]
[1754476435482,1.43882344,114100.0,114090.0,0.2479]
[1754476435684,1.44082344,114100.0,114090.0,0.2479]
[1754476436379,0.220719,114080.0,114070.0,0.66506334]
[1754476436582,0.655509,114080.0,114070.0,0.68798334]
[1754476437471,0.655509,114080.0,114070.0,0.86332734]
[1754476438277,0.655509,114080.0,114070.0,0.86432734]
[1754476439785,0.655509,114080.0,114070.0,0.68898334]
[1754476440981,0.655509,114080.0,114070.0,0.68998334]
[1754476441382,0.655509,114080.0,114070.0,0.3855046]
[1754476441782,0.655509,114080.0,114070.0,0.68898334]
[1754476443294,0.640659,114080.0,114070.0,0.68898334]
[1754476443790,0.655509,114080.0,114070.0,0.68898334]
[1754476455997,0.294709,114080.0,114070.0,0.68898334]
[1754476457092,0.294709,114080.0,114070.0,0.3845046]
[1754476457295,0.294709,114080.0,114070.0,0.68898334]
[1754476458190,0.655509,114080.0,114070.0,0.68898334]
[1754476458498,0.294709,114080.0,114070.0,0.68898334]
[1754476458994,0.294709,114080.0,114070.0,0.68998334]
[1754476459390,0.294709,114080.0,114070.0,0.69098334]
[1754476460495,0.294709,114080.0,114070.0,0.80118122]
[1754476460696,0.294709,114080.0,114070.0,0.49670248]
[1754476460897,0.294709,114080.0,114070.0,0.80118122]
[1754476461095,0.175329,114080.0,114070.0,0.97651582]
[1754476461288,0.175329,114080.0,114070.0,1.33731582]
[1754476462399,0.175329,114080.0,114070.0,1.33531582]
[1754476462598,0.175329,114080.0,114070.0,1.33631582]
[1754476462798,0.175329,114080.0,114070.0,1.33731582]
[1754476463098,0.3312979,114090.0,114080.0,0.2921391]
[1754476463293,0.3312979,114090.0,114080.0,1.19665784]
[1754476463490,0.3312979,114090.0,114080.0,1.55745784]
[1754476463491,0.2629779,114090.0,114080.0,1.55745784]
[1754476463996,0.2856679,114090.0,114080.0,1.55745784]
[1754476464198,0.3445479,114090.0,114080.0,1.55745784]
[1754476464389,0.3589879,114090.0,114080.0,1.55745784]
[1754476464593,0.3803979,114090.0,114080.0,1.55745784]
[1754476465394,0.3803979,114090.0,114080.0,1.55845784]
[1754476466001,0.3803979,114090.0,114080.0,1.80635784]
[1754476466699,0.3659579,114090.0,114080.0,1.80635784]
[1754476467405,0.3221269,114090.0,114080.0,1.80635784]
[1754476467601,0.2191469,114090.0,114080.0,1.80635784]
[1754476467901,0.1753173,114090.0,114080.0,1.80635784]
[1754476469299,0.3659281,114100.0,114090.0,0.2227031]
[1754476469504,0.3659281,114100.0,114090.0,0.95740184]
[1754476470306,0.2629481,114100.0,114090.0,0.95740184]
[1754476470603,0.2201236,114100.0,114090.0,0.95740184]
[1754476470802,0.2428136,114100.0,114090.0,0.95740184]
[1754476471302,0.2428136,114100.0,114090.0,1.06759972]
[1754476471501,0.3375436,114100.0,114090.0,1.13854712]
[1754476471894,0.3375436,114100.0,114090.0,1.38644712]
[1754476472100,0.3365436,114100.0,114090.0,1.27724924]
[1754476473194,0.3365436,114100.0,114090.0,1.27824924]
[1754476473394,0.3365436,114100.0,114090.0,1.27824954]
[1754476473697,0.3365436,114100.0,114090.0,1.27624954]
[1754476473902,0.3365436,114100.0,114090.0,1.27724954]
[1754476474306,0.3365436,114100.0,114090.0,1.27824954]
[1754476474499,0.3221036,114100.0,114090.0,1.27824954]
[1754476474807,0.2874436,114100.0,114090.0,1.27824954]
[1754476475410,0.2418136,114100.0,114090.0,1.27824954]
[1754476476204,0.2764736,114100.0,114090.0,1.27824954]
[1754476478202,0.3365436,114100.0,114090.0,1.27824954]
[1754476479709,0.2874436,114100.0,114090.0,1.27824954]
[1754476480107,0.1753007,114100.0,114090.0,1.27824954]
[1754476480303,0.63271537,114110.0,114100.0,0.175085]
[1754476480498,0.5587769,114110.0,114100.0,1.08112374]
[1754476480703,0.5587769,114110.0,114100.0,1.32902374]
[1754476480903,0.1979769,114110.0,114100.0,1.68982374]
[1754476481311,0.1979769,114110.0,114100.0,1.80002162]
[1754476481812,0.1979769,114110.0,114100.0,1.68982374]
[1754476482309,0.1979769,114110.0,114100.0,1.80002162]
[1754476482509,0.1989769,114110.0,114100.0,1.80002162]
[1754476482912,0.1989769,114110.0,114100.0,1.68982374]
[1754476483511,0.1979769,114110.0,114100.0,1.68982374]
[1754476483709,0.1979769,114110.0,114100.0,1.69082374]
[1754476485014,0.1979769,114110.0,114100.0,1.69962751]
[1754476485214,0.1979769,114110.0,114100.0,1.70062751]
[1754476485513,0.02269,114110.0,114100.0,1.70062751]
[1754476485814,0.1979619,114110.0,114100.0,1.70062751]
[1754476486611,0.0876325,114120.0,114100.0,1.61827151]
[1754476486812,0.1982849,114120.0,114110.0,0.77263254]
[1754476487411,0.1982849,114120.0,114110.0,0.88283042]
[1754476487610,0.1752456,114130.0,114120.0,0.1031332]
[1754476487811,0.1982656,114130.0,114120.0,1.78280856]
[1754476488117,0.1982656,114130.0,114120.0,1.47832982]
[1754476488711,0.2572056,114130.0,114120.0,1.47832982]
[1754476488911,0.2715256,114130.0,114120.0,1.37519662]
[1754476489112,0.2725256,114130.0,114120.0,1.55045322]
[1754476489718,0.2957256,114130.0,114120.0,1.37519662]
[1754476490120,0.2957256,114130.0,114120.0,1.26499874]
[1754476490622,0.2977256,114130.0,114120.0,1.26499874]
[1754476490825,0.2977256,114130.0,114120.0,0.96052]
[1754476491015,0.2977256,114130.0,114120.0,1.26499874]
[1754476492516,0.2977256,114130.0,114120.0,1.51289874]
[1754476496621,0.2977256,114130.0,114120.0,1.20842]
[1754476496822,0.2977256,114130.0,114120.0,1.51289874]
[1754476503420,0.2834056,114130.0,114120.0,1.51289874]
[1754476503626,0.2496456,114130.0,114120.0,1.51289874]
[1754476504023,0.2264456,114130.0,114120.0,1.51289874]
[1754476504422,0.2496456,114130.0,114120.0,1.51289874]
[1754476504627,0.2977256,114130.0,114120.0,1.51289874]
[1754476507732,0.2496456,114130.0,114120.0,1.68815374]
[1754476508030,0.2264456,114130.0,114120.0,1.68815374]
[1754476509930,0.2012656,114130.0,114120.0,1.68815374]
[1754476512732,0.2012656,114130.0,114120.0,1.79835162]
[1754476514131,0.1782456,114130.0,114120.0,2.10283036]
[1754476514332,0.2027156,114130.0,114120.0,2.10283036]
[1754476516227,0.003,114130.0,114120.0,2.10283036]
[1754476516428,0.003,114130.0,114120.0,2.54633036]
[1754476516636,0.003,114130.0,114120.0,2.56381149]
[1754476516837,0.2434904,114150.0,114130.0,0.1314229]
[1754476517135,0.2434904,114150.0,114140.0,1.43982304]
[1754476517638,0.02447,114150.0,114140.0,1.68772304]
[1754476517932,0.02447,114150.0,114140.0,1.70520476]
[1754476518132,0.2872776,114160.0,114140.0,1.66139256]
[1754476518335,0.2872776,114160.0,114150.0,0.40489654]
[1754476518730,0.2872776,114160.0,114150.0,0.22968764]
[1754476519337,0.3666876,114160.0,114150.0,0.22968764]
[1754476519529,0.3846076,114160.0,114150.0,0.54604492]
[1754476520639,0.3934311,114160.0,114150.0,0.54604492]
[1754476523142,0.3934311,114160.0,114150.0,0.72125342]
[1754476523842,0.3934311,114160.0,114150.0,0.54604492]
[1754476524141,0.3934311,114160.0,114150.0,0.31635728]
[1754476524341,0.3934311,114160.0,114150.0,0.62083602]
[1754476527844,0.3934311,114160.0,114150.0,0.98163602]
[1754476528643,0.3934311,114160.0,114150.0,1.15684392]
[1754476528845,0.3934311,114160.0,114150.0,0.98163602]
[1754476529044,0.3934311,114160.0,114150.0,0.62083602]
[1754476531247,0.3934311,114160.0,114150.0,0.79604392]
[1754476531843,0.3934311,114160.0,114150.0,0.62083602]
[1754476532450,0.3934311,114160.0,114150.0,0.79604392]
[1754476533043,0.3496296,114160.0,114150.0,0.79604392]
[1754476533552,0.3408061,114160.0,114150.0,0.79604392]
[1754476534151,0.3408061,114160.0,114150.0,0.62083602]
[1754476534348,0.3408061,114160.0,114150.0,0.31635728]
[1754476534651,0.3408061,114160.0,114150.0,0.62083602]
[1754476534950,0.3408061,114160.0,114150.0,0.63840528]
[1754476535959,0.3408061,114160.0,114150.0,0.39050528]
[1754476536859,0.3494045,114160.0,114150.0,0.39250528]
[1754476537559,0.3464045,114160.0,114150.0,0.39250528]
[1754476537761,0.3464045,114160.0,114150.0,0.39350528]
[1754476538560,0.3464045,114160.0,114150.0,0.37593602]
[1754476539862,0.3464045,114160.0,114150.0,0.55114392]
[1754476540661,0.3464045,114160.0,114150.0,0.93077626]
[1754476543961,0.3464045,114160.0,114150.0,0.75556836]
[1754476545364,0.3464045,114160.0,114150.0,0.93077606]
[1754476546157,0.3464045,114160.0,114150.0,0.75556836]
[1754476546357,0.68846004,114160.0,114150.0,0.67041728]
[1754476546561,0.3378061,114160.0,114150.0,1.01247282]
[1754476546763,0.67986164,114160.0,114150.0,1.01247282]
[1754476546953,0.67986164,114160.0,114150.0,0.41351282]
[1754476547261,0.67986164,114160.0,114150.0,0.07145728]
[1754476547567,0.2920777,114150.0,114140.0,0.3608]
[1754476547862,0.97618878,114150.0,114140.0,0.3608]
[1754476548060,1.45140478,114150.0,114140.0,0.2858]
[1754476548367,1.45140478,114150.0,114140.0,0.009573]
[1754476548561,0.1987119,114140.0,114130.0,0.3608]
[1754476548755,1.11078275,114140.0,114130.0,0.3608]
[1754476548954,1.58601475,114140.0,114130.0,0.3608]
[1754476549161,1.58601475,114140.0,114130.0,0.2060886]
[1754476549361,0.1752675,114110.0,114100.0,0.93137281]
[1754476549567,0.1752675,114110.0,114100.0,0.8919128]
[1754476550760,0.1752675,114110.0,114100.0,1.1962513]
[1754476551059,0.1752675,114110.0,114100.0,0.8919128]
[1754476552068,0.1752675,114110.0,114100.0,1.1962513]
[1754476552268,0.1752675,114110.0,114100.0,1.1962913]
[1754476554274,0.1752675,114110.0,114100.0,1.1972913]
[1754476554775,0.1752675,114110.0,114100.0,1.1992913]
[1754476555276,0.1752675,114110.0,114100.0,1.30936131]
[1754476555573,0.1752675,114110.0,114100.0,1.1992913]
[1754476556773,0.1752675,114110.0,114100.0,1.0240085]
[1754476556975,0.1752675,114110.0,114100.0,1.1992912]
[1754476557178,0.1752675,114110.0,114100.0,0.8949527]
[1754476557475,0.1752675,114110.0,114100.0,1.1992912]
[1754476557871,0.1752675,114110.0,114100.0,1.0240085]
[1754476559777,0.1752675,114110.0,114100.0,1.0230085]
[1754476560173,0.1752675,114110.0,114100.0,1.0220085]
[1754476560373,0.1758475,114110.0,114100.0,1.0230085]
[1754476560575,0.1752675,114110.0,114100.0,1.0230085]
[1754476561280,0.1752675,114110.0,114100.0,1.197291]